fUSD/lending_fUSD_20240118
["ID","MTS","AMOUNT","RATE_DAILY","PERIOD"]
[312016505,1705549847731,-500.0,0.00021917,2]
[312016506,1705549847740,-517.08308336,0.00021917,2]
[312016507,1705549847750,-500.0,0.00021917,2]
[312016508,1705549847760,-500.0,0.00021917,2]
[312016509,1705549847769,-500.0,0.00021917,2]
[312016510,1705549847779,-534.5,0.00021917,2]
[312016511,1705549847788,-603.24,0.00021917,2]
[312016512,1705549847798,-500.0,0.00021917,2]
[312016513,1705549847855,-500.0,0.00021917,2]
[312016514,1705549847865,-500.0,0.00021917,2]
[312016515,1705549847874,-787.17,0.00021917,2]
[312016516,1705549847883,-685.75,0.00021917,2]
[312016517,1705549847892,-500.0,0.00021917,2]
[312016518,1705549847902,-500.0,0.00021917,2]
[312016519,1705549847910,-516.7259679,0.00021917,2]
[312016520,1705549847919,-821.39,0.00021917,2]
[312016521,1705549847928,-500.0,0.00021917,2]
[312016522,1705549847937,-500.0,0.00021917,2]
[312016523,1705549847947,-500.0,0.00021917,2]
[312016524,1705549847956,-500.0,0.00021917,2]
[312016525,1705549847965,-500.0,0.00021917,2]
[312016526,1705549847975,-500.0,0.00021917,2]
[312016527,1705549847984,-500.0,0.00021917,2]
[312016528,1705549847992,-500.0,0.00021917,2]
[312016529,1705549848002,-500.0,0.00021917,2]
[312016530,1705549848011,-500.0,0.00021917,2]
[312016531,1705549848019,-500.0,0.00021917,2]
[312016532,1705549848029,-1024.35,0.00021917,2]
[312016533,1705549848038,-500.0,0.00021917,2]
[312016534,1705549848047,-769.25,0.00021917,2]
[312016535,1705549848056,-500.0,0.00021917,2]
[312016536,1705549848065,-500.0,0.00021917,2]
[312016537,1705549848075,-776.47,0.00021917,2]
[312016538,1705549848084,-1047.57,0.00021917,2]
[312016539,1705549848093,-500.0,0.00021917,2]
[312016540,1705549848103,-589.13,0.00021917,2]
[312016541,1705549848113,-509.20791786,0.00021917,2]
[312016542,1705549848122,-500.0,0.00021917,2]
[312016543,1705549848131,-3911.88,0.00021917,2]
[312016544,1705549848140,-563.74,0.00021917,2]
[312016545,1705549848149,-500.0,0.00021917,2]
[312016546,1705549848159,-657.03,0.00021917,2]
[312016547,1705549848168,-1521.99,0.00021917,2]
[312016548,1705549848177,-517.09684542,0.00021917,2]
[312016549,1705549848187,-343.68501428,0.00021917,2]
[312016550,1705549848198,-500.0,0.00021917,2]
[312016551,1705549848208,-500.0,0.00021917,2]
[312016552,1705549848217,-785.49,0.00021917,2]
[312016553,1705549848227,-500.0,0.00021917,2]
[312016554,1705549848240,-561.62,0.00021917,2]
[312016555,1705549848253,-500.0,0.00021917,2]
[312016556,1705549848262,-500.0,0.00021917,2]
[312016557,1705549848272,-618.82104304,0.00021917,2]
[312016558,1705549848281,-500.0,0.00021917,2]
[312016559,1705549848291,-511.01253293,0.00021917,2]
[312016560,1705549848300,-500.0,0.00021917,2]
[312016561,1705549848309,-4750.52,0.00021917,2]
[312016562,1705549848318,-502.42102675,0.00021917,2]
[312016563,1705549848327,-500.0,0.00021917,2]
[312016564,1705549848338,-500.0,0.00021917,2]
[312016565,1705549848347,-1857.15,0.00021917,2]
[312016566,1705549848356,-500.0,0.00021917,2]
[312016567,1705549848366,-607.06,0.00021917,2]
[312016568,1705549848375,-500.0,0.00021917,2]
[312016569,1705549848384,-500.0,0.00021917,2]
[312016570,1705549848393,-500.0,0.00021917,2]
[312016571,1705549848403,-1597.59,0.00021917,2]
[312016572,1705549848412,-500.0,0.00021917,2]
[312016573,1705549848421,-500.0,0.00021917,2]
[312016574,1705549848431,-2234.54,0.00021917,2]
[312016575,1705549848441,-500.0,0.00021917,2]
[312016576,1705549848449,-1441.37,0.00021917,2]
[312016577,1705549848459,-500.0,0.00021917,2]
[312016578,1705549848468,-500.0,0.00021917,2]
[312016579,1705549848478,-500.0,0.00021917,2]
[312016580,1705549848487,-504.87585397,0.00021917,2]
[312016581,1705549848496,-500.0,0.00021917,2]
[312016582,1705549848506,-500.0,0.00021917,2]
[312016583,1705549848515,-500.0,0.00021917,2]
[312016584,1705549848524,-500.0,0.00021917,2]
[312016585,1705549848534,-500.0,0.00021917,2]
[312016586,1705549848543,-500.0,0.00021917,2]
[312016587,1705549848553,-977.0,0.00021917,2]
[312016588,1705549848562,-351.79841003,0.00021917,2]
[312016589,1705549848572,-500.0,0.00021917,2]
[312016590,1705549848582,-453.31943514,0.00021917,2]
[312016591,1705549848592,-500.0,0.00021917,2]
[312016592,1705549848601,-500.0,0.00021917,2]
[312016593,1705549848610,-501.66384916,0.00021917,2]
[312016594,1705549848620,-615.41,0.00021917,2]
[312016595,1705549848629,-500.0,0.00021917,2]
[312016596,1705549848639,-571.06181151,0.00021917,2]
[312016597,1705549848648,-564.36,0.00021917,2]
[312016598,1705549848658,-500.0,0.00021917,2]
[312016599,1705549848667,-500.0,0.00021917,2]
[312016600,1705549848677,-1332.13,0.00021917,2]
[312016601,1705549848686,-500.0,0.00021917,2]
[312016602,1705549848696,-500.0,0.00021917,2]
[312016603,1705549848705,-1084.81,0.00021917,2]
[312016604,1705549848715,-500.0,0.00021917,2]
[312016605,1705549848724,-599.21730478,0.00021917,2]
[312016606,1705549848733,-531.42,0.00021917,2]
[312016607,1705549848743,-500.0,0.00021917,2]
[312016608,1705549848752,-791.44,0.00021917,2]
[312016609,1705549848762,-754.16,0.00021917,2]
[312016610,1705549848771,-522.40371043,0.00021917,2]
[312016611,1705549848781,-8573.98,0.00021917,2]
[312016612,1705549848791,-521.44574748,0.00021917,2]
[312016613,1705549848801,-506.83699323,0.00021917,2]
[312016614,1705549848810,-500.0,0.00021917,2]
[312016615,1705549848820,-511.08,0.00021917,2]
[312016616,1705549848829,-500.0,0.00021917,2]
[312016617,1705549848839,-842.37,0.00021917,2]
[312016618,1705549848849,-500.0,0.00021917,2]
[312016619,1705549848858,-500.0,0.00021917,2]
[312016620,1705549848867,-500.0,0.00021917,2]
[312016621,1705549848876,-500.0,0.00021917,2]
[312016622,1705549848886,-500.0,0.00021917,2]
[312016623,1705549848895,-500.0,0.00021917,2]
[312016624,1705549848905,-1114.67,0.00021917,2]
[312016625,1705549848914,-500.0,0.00021917,2]
[312016626,1705549848924,-549.94,0.00021917,2]
[312016627,1705549848933,-500.0,0.00021917,2]
[312016628,1705549848943,-500.0,0.00021917,2]
[312016629,1705549848952,-500.0,0.00021917,2]
[312016630,1705549848962,-1317.47,0.00021917,2]
[312016631,1705549848971,-500.0,0.00021917,2]
[312016632,1705549848982,-500.0,0.00021917,2]
[312016633,1705549848991,-500.0,0.00021917,2]
[312016634,1705549849000,-500.0,0.00021917,2]
[312016635,1705549849009,-500.0,0.00021917,2]
[312016636,1705549849019,-500.0,0.00021917,2]
[312016637,1705549849028,-513.59601016,0.00021917,2]
[312016638,1705549849037,-375.59765918,0.00021917,2]
[312016639,1705549849047,-521.96983673,0.00021917,2]
[312016640,1705549849056,-500.0,0.00021917,2]
[312016641,1705549849066,-500.0,0.00021917,2]
[312016642,1705549849075,-500.0,0.00021917,2]
[312016643,1705549849084,-1160.37,0.00021917,2]
[312016644,1705549849093,-675.0,0.00021917,2]
[312016645,1705549849102,-500.0,0.00021917,2]
[312016646,1705549849112,-644.18,0.00021917,2]
[312016647,1705549849122,-500.0,0.00021917,2]
[312016648,1705549849131,-500.0,0.00021917,2]
[312016649,1705549849140,-500.0,0.00021917,2]
[312016650,1705549849149,-1903.39,0.00021917,2]
[312016651,1705549849159,-500.0,0.00021917,2]
[312016652,1705549849168,-500.0,0.00021917,2]
[312016653,1705549849177,-629.14069569,0.00021917,2]
[312016654,1705549849187,-500.0,0.00021917,2]
[312016655,1705549849197,-542.58968276,0.00021917,2]
[312016656,1705549849208,-707.86,0.00021917,2]
[312016657,1705549849216,-500.0,0.00021917,2]
[312016658,1705549849226,-500.0,0.00021917,2]
[312016659,1705549849235,-2205.46,0.00021917,2]
[312016660,1705549849245,-598.38,0.00021917,2]
[312016661,1705549849254,-1943.81,0.00021917,2]
[312016662,1705549849263,-500.0,0.00021917,2]
[312016663,1705549849273,-502.5889524,0.00021917,2]
[312016664,1705549849283,-500.0,0.00021917,2]
[312016665,1705549849294,-500.0,0.00021917,2]
[312016666,1705549849303,-500.0,0.00021917,2]
[312016667,1705549849312,-500.0,0.00021917,2]
[312016668,1705549849321,-511.93,0.00021917,2]
[312016669,1705549849330,-500.0,0.00021917,2]
[312016670,1705549849339,-3461.87,0.00021917,2]
[312016671,1705549849348,-500.0,0.00021917,2]
[312016672,1705549849357,-500.0,0.00021917,2]
[312016673,1705549849366,-335.71998199,0.00021917,2]
[312016674,1705549849375,-500.0,0.00021917,2]
[312016675,1705549849384,-500.0,0.00021917,2]
[312016676,1705549849393,-500.0,0.00021917,2]
[312016677,1705549849402,-500.0,0.00021917,2]
[312016678,1705549849410,-2666.23,0.00021917,2]
[312016679,1705549849420,-980.76,0.00021917,2]
[312016680,1705549849429,-500.0,0.00021917,2]
[312016681,1705549849438,-500.0,0.00021917,2]
[312016682,1705549849447,-566.78,0.00021917,2]
[312016683,1705549849456,-500.0,0.00021917,2]
[312016684,1705549849465,-646.07,0.00021917,2]
[312016685,1705549849474,-500.0,0.00021917,2]
[312016686,1705549849483,-500.0,0.00021917,2]
[312016687,1705549849492,-500.0,0.00021917,2]
[312016688,1705549849502,-500.0,0.00021917,2]
[312016689,1705549849511,-500.0,0.00021917,2]
[312016690,1705549849520,-1762.52,0.00021917,2]
[312016691,1705549849529,-1623.22,0.00021917,2]
[312016692,1705549849538,-500.0,0.00021917,2]
[312016693,1705549849547,-515.21276649,0.00021917,2]
[312016694,1705549849556,-500.0,0.00021917,2]
[312016695,1705549849565,-2868.3,0.00021917,2]
[312016696,1705549849574,-443.7598126,0.00021917,2]
[312016697,1705549849583,-500.0,0.00021917,2]
[312016698,1705549849592,-500.0,0.00021917,2]
[312016699,1705549849601,-500.0,0.00021917,2]
[312016700,1705549849610,-500.0,0.00021917,2]
[312016701,1705549849620,-921.4,0.00021917,2]
[312016702,1705549849629,-1173.59,0.00021917,5]
[312016703,1705549849638,-500.0,0.00021917,2]
[312016704,1705549849650,-500.0,0.00021917,2]
[312016705,1705549849659,-2407.27,0.00021917,2]
[312016706,1705549849669,-2163.3,0.00021917,2]
[312016707,1705549849678,-500.0,0.00021917,2]
[312016708,1705549849688,-513.32,0.00021917,2]
[312016709,1705549849697,-647.87,0.00021917,2]
[312016710,1705549849706,-500.0,0.00021917,2]
[312016711,1705549849715,-554.64,0.00021917,2]
[312016712,1705549849725,-500.0,0.00021917,2]
[312016713,1705549849734,-500.0,0.00021917,2]
[312016714,1705549849744,-500.0,0.00021917,2]
[312016715,1705549849753,-500.0,0.00021917,2]
[312016716,1705549849762,-500.0,0.00021917,2]
[312016717,1705549849772,-500.0,0.00021917,2]
[312016718,1705549849781,-500.0,0.00021917,2]
[312016719,1705549849791,-1747.31,0.00021917,2]
[312016720,1705549849800,-500.0,0.00021917,2]
[312016721,1705549849810,-500.0,0.00021917,2]
[312016722,1705549849819,-500.0,0.00021917,2]
[312016723,1705549849828,-500.0,0.00021917,2]
[312016724,1705549849838,-500.0,0.00021917,2]
[312016725,1705549849847,-262.48745233,0.00021917,2]
[312016726,1705549849857,-500.0,0.00021917,2]
[312016727,1705549849867,-500.0,0.00021917,2]
[312016728,1705549849876,-508.14101732,0.00021917,2]
[312016729,1705549849885,-699.12,0.00021917,2]
[312016730,1705549849894,-617.00236934,0.00021917,2]
[312016731,1705549849903,-539.81030464,0.00021917,2]
[312016732,1705549849913,-500.0,0.00021917,2]
[312016733,1705549849922,-500.0,0.00021917,2]
[312016734,1705549849932,-500.0,0.00021917,2]
[312016735,1705549849941,-500.0,0.00021917,2]
[312016736,1705549849951,-500.0,0.00021917,2]
[312016737,1705549849960,-2629.32,0.00021917,2]
[312016738,1705549849969,-515.52,0.00021917,2]
[312016739,1705549849979,-500.0,0.00021917,2]
[312016740,1705549849990,-1103.77,0.00021917,2]
[312016741,1705549849999,-500.0,0.00021917,2]
[312016742,1705549850008,-512.55860549,0.00021917,2]
[312016743,1705549850018,-1109.28,0.00021917,2]
[312016744,1705549850027,-500.0,0.00021917,2]
[312016745,1705549850036,-500.0,0.00021917,2]
[312016746,1705549850046,-250.0,0.00021918,2]
[312016747,1705549850055,-150.0,0.0002193,2]
[312016748,1705549850064,-269.68289212,0.00021967,2]
[312016749,1705549850074,-504.85673287,0.00021972,2]
[312016750,1705549850084,-164.37530638,0.00021975,2]
[312016751,1705549850093,-450.0,0.00022,3]
[312016752,1705549850102,-800.0,0.00022014,2]
[312016753,1705549850112,-150.0,0.0002206,2]
[312016754,1705549850121,-163.63,0.00022062,2]
[312016755,1705549850130,-842.37,0.0002209,2]
[312016756,1705549850140,-494.68174316,0.00022091,2]
[312016757,1705549850149,-150.0,0.00022113,2]
[312016758,1705549850158,-504.85673287,0.00022126,2]
[312016759,1705549850167,-165.15209138,0.00022139,2]
[312016760,1705549850177,-151.40118,0.00022148,3]
[312016761,1705549850186,-151.40118,0.00022148,3]
[312016762,1705549850196,-151.40118,0.00022148,3]
[312016763,1705549850207,-151.40118,0.00022148,3]
[312016764,1705549850216,-151.40118,0.00022148,3]
[312016765,1705549850225,-151.40118,0.00022148,3]
[312016766,1705549850235,-151.40118,0.00022148,3]
[312016767,1705549850245,-151.40118,0.00022148,3]
[312016768,1705549850254,-151.40118,0.00022148,3]
[312016769,1705549850264,-151.40118,0.00022148,3]
[312016770,1705549850274,-151.40118,0.00022148,3]
[312016771,1705549850284,-151.40118,0.00022148,3]
[312016772,1705549850294,-151.40118,0.00022148,3]
[312016773,1705549850303,-151.40118,0.00022148,3]
[312016774,1705549850312,-151.40118,0.00022148,3]
[312016775,1705549850332,-151.40118,0.00022148,3]
[312016776,1705549850343,-151.40118,0.00022148,3]
[312016777,1705549850352,-234.40118,0.00022148,3]
[312016778,1705549850361,-800.0,0.00022149,2]
[312016779,1705549850371,-800.0,0.00022164,2]
[312016780,1705549850380,-160.12,0.00022187,2]
[312016781,1705549850390,-207.82039875,0.00022189,2]
[312016782,1705549850399,-155.4915277,0.00022189,2]
[312016783,1705549850408,-124.62557308,0.0002219,2]
[312016784,1705549851247,-705.25005449,0.0002219,2]
[312016785,1705549851259,-14055.94016137,0.0002219,2]
[312016786,1705549851272,-2844.74302818,0.0002219,2]
[312016787,1705549851286,-93.07433591,0.0002219,2]
[312016788,1705549851295,-172.31198744,0.0002219,2]
[312016789,1705549851305,-500.0,0.0002219,2]
[312016790,1705549851315,-317.04,0.0002219,2]
[312016791,1705549851325,-842.37,0.0002219,2]
[312016792,1705549851335,-151.0,0.00022191,7]
[312016793,1705549851345,-151.0,0.00022191,7]
[312016794,1705549851355,-151.0,0.00022191,7]
[312016795,1705549851364,-151.0,0.00022191,7]
[312016796,1705549851374,-113.57903446,0.00022191,7]
[312016797,1705549851400,-37.42096554,0.00022191,7]
[312016798,1705549851409,-151.0,0.00022191,7]
[312016799,1705549851419,-154.832018,0.00022191,7]
[312016800,1705549851429,-155.430816,0.00022191,7]
[312016801,1705549851439,-118.24395255,0.00022191,7]
[312016921,1705551032396,-370.42818622,0.00018575,2]
[312016923,1705551032407,-76.05919139,0.00018576,2]
[312016924,1705551032421,-435.79844913,0.00018576,2]
[312016925,1705551032434,-128.77235948,0.00018576,2]
[312016926,1705551032444,-872.0,0.00020418,2]
[312016927,1705551032454,-1865.43,0.00020418,2]
[312016928,1705551032464,-766.6,0.0002043,2]
[312016929,1705551032475,-179.79,0.00020464,2]
[312016930,1705551032485,-162.67,0.00020534,2]
[312016931,1705551032495,-153.84,0.00020629,2]
[312016932,1705551032506,-163.63,0.00020652,2]
[312016933,1705551032517,-150.0,0.00020721,2]
[312016934,1705551032530,-162.67,0.0002075,2]
[312016935,1705551032541,-150.0,0.00020769,2]
[312016936,1705551032552,-150.0,0.00020816,2]
[312016937,1705551032567,-640.63,0.0002084,2]
[312016938,1705551032579,-250.0,0.000209,2]
[312016939,1705551032594,-150.0,0.00020904,2]
[312016940,1705551032604,-162.67,0.00020966,2]
[312016941,1705551032614,-164.95,0.00020976,2]
[312016942,1705551032624,-156.82,0.00021066,2]
[312016943,1705551032634,-160.0,0.00021097,2]
[312016944,1705551032643,-165.19137721,0.00021112,2]
[312016945,1705551032652,-162.67,0.00021182,2]
[312016946,1705551032662,-725.73,0.00021212,2]
[312016947,1705551032671,-150.0,0.00021359,2]
[312016948,1705551032680,-150.0,0.00021359,2]
[312016991,1705551033095,-150.0,0.00021359,2]
[312016994,1705551033134,-150.0,0.00021367,2]
[312016995,1705551033156,-725.62,0.00021372,2]
[312016996,1705551033165,-162.67,0.00021398,2]
[312016997,1705551033174,-250.0,0.000214,2]
[312016998,1705551033184,-766.6,0.00021408,2]
[312016999,1705551033193,-150.0,0.00021415,2]
[312017000,1705551033202,-1865.43,0.00021439,2]
[312017001,1705551033212,-150.0,0.00021538,2]
[312017002,1705551033222,-156.82,0.00021593,2]
[312017003,1705551033231,-164.43,0.00021613,2]
[312017004,1705551033241,-162.67,0.00021615,2]
[312017005,1705551033251,-153.84,0.00021704,2]
[312017006,1705551033260,-150.0,0.00021736,2]
[312017007,1705551033268,-150.0,0.00021752,2]
[312017008,1705551033277,-711.4,0.00021762,2]
[312017009,1705551033289,-1100.0,0.000218,7]
[312017010,1705551033298,-250.0,0.00021817,2]
[312017011,1705551033307,-5000.0,0.00021817,2]
[312017012,1705551033316,-2064.7387,0.00021817,2]
[312017013,1705551033326,-9214.9407,0.00021817,2]
[312017014,1705551033334,-162.67,0.00021831,2]
[312017015,1705551033344,-710.18,0.00021874,2]
[312017016,1705551033353,-235.87535471,0.000219,3]
[312017017,1705551033362,-2300.0,0.000219,7]
[312017018,1705551033372,-250.0,0.000219,2]
[312017019,1705551033381,-150.0,0.00021916,2]
[312017020,1705551033390,-500.0,0.00021917,2]
[312017021,1705551033399,-502.33068917,0.00021917,2]
[312017022,1705551033409,-603.89730229,0.00021917,2]
[312017023,1705551033419,-633.3369718,0.00021917,2]
[312017024,1705551033427,-500.0,0.00021917,2]
[312017025,1705551033436,-500.0,0.00021917,2]
[312017026,1705551033446,-560.80396936,0.00021917,2]
[312017027,1705551033455,-500.0,0.00021917,2]
[312017028,1705551033464,-460.91882121,0.00021917,2]
[312017029,1705551033473,-500.0,0.00021917,2]
[312017030,1705551033482,-506.39423283,0.00021917,2]
[312017031,1705551033491,-500.0,0.00021917,2]
[312017032,1705551033501,-500.0,0.00021917,2]
[312017033,1705551033511,-521.77,0.00021917,2]
[312017034,1705551033524,-430.3361159,0.00021917,2]
[312017035,1705551033534,-500.0,0.00021917,2]
[312017036,1705551033543,-509.64703248,0.00021917,2]
[312017037,1705551033552,-590.10570654,0.00021917,2]
[312017038,1705551033561,-513.3784748,0.00021917,2]
[312017039,1705551033570,-535.44047407,0.00021917,2]
[312017040,1705551033579,-516.94575743,0.00021917,2]
[312017041,1705551033588,-502.24267735,0.00021917,2]
[312017042,1705551033597,-183.37214157,0.00021917,2]
[312017043,1705551033608,-508.58745026,0.00021917,2]
[312017044,1705551033617,-500.0,0.00021917,2]
[312017045,1705551033626,-500.0,0.00021917,2]
[312017046,1705551033635,-500.0,0.00021917,2]
[312017047,1705551033643,-500.0,0.00021917,2]
[312017048,1705551033653,-500.0,0.00021917,2]
[312017049,1705551033662,-508.86081034,0.00021917,2]
[312017050,1705551033673,-411.47473207,0.00021917,2]
[312017051,1705551033682,-500.0,0.00021917,2]
[312017052,1705551033691,-422.94460836,0.00021917,2]
[312017053,1705551033701,-500.0,0.00021917,2]
[312017054,1705551033710,-511.54305181,0.00021917,2]
[312017055,1705551033719,-500.0,0.00021917,2]
[312017056,1705551033729,-500.0,0.00021917,2]
[312017057,1705551033738,-500.0,0.00021917,2]
[312017058,1705551033748,-614.58999377,0.00021917,2]
[312017059,1705551033757,-500.0,0.00021917,2]
[312017060,1705551033766,-500.0,0.00021917,2]
[312017061,1705551033775,-500.0,0.00021917,2]
[312017062,1705551033789,-500.0,0.00021917,2]
[312017063,1705551033798,-500.0,0.00021917,2]
[312017064,1705551033807,-500.0,0.00021917,2]
[312017065,1705551033816,-500.0,0.00021917,2]
[312017066,1705551033826,-172.76817024,0.00021917,2]
[312017067,1705551033872,-327.23182976,0.00021917,2]
[312017068,1705551033881,-500.0,0.00021917,2]
[312017069,1705551033890,-272.33673451,0.00021917,2]
[312017070,1705551033901,-232.75942464,0.00021917,2]
[312017071,1705551033910,-500.0,0.00021917,2]
[312017072,1705551033919,-261.30243889,0.00021917,2]
[312017073,1705551033928,-157.79455,0.00021917,2]
[312017074,1705551033936,-500.0,0.00021917,2]
[312017075,1705551033946,-500.0,0.00021917,2]
[312017076,1705551033954,-500.0,0.00021917,2]
[312017077,1705551033963,-410.58887185,0.00021917,2]
[312017078,1705551033975,-89.41112815,0.00021917,2]
[312017079,1705551033984,-500.0,0.00021917,2]
[312017080,1705551033992,-164.31884067,0.00021917,2]
[312017081,1705551034001,-500.0,0.00021917,2]
[312017082,1705551034010,-512.46638318,0.00021917,2]
[312017083,1705551034019,-500.0,0.00021917,2]
[312017084,1705551034027,-500.0,0.00021917,2]
[312017085,1705551034037,-500.0,0.00021917,2]
[312017086,1705551034046,-500.0,0.00021917,2]
[312017087,1705551034055,-500.0,0.00021917,2]
[312017088,1705551034065,-500.0,0.00021917,2]
[312017089,1705551034074,-500.0,0.00021917,2]
[312017090,1705551034083,-500.0,0.00021917,2]
[312017091,1705551034093,-500.0,0.00021917,2]
[312017092,1705551034102,-500.0,0.00021917,2]
[312017093,1705551034111,-500.0,0.00021917,2]
[312017094,1705551034120,-500.0,0.00021917,2]
[312017095,1705551034131,-527.3082873,0.00021917,2]
[312017096,1705551034140,-500.0,0.00021917,2]
[312017097,1705551034150,-500.0,0.00021917,2]
[312017098,1705551034158,-508.67932125,0.00021917,2]
[312017099,1705551034167,-164.06,0.00021917,2]
[312017100,1705551034177,-500.0,0.00021917,2]
[312017101,1705551034186,-500.0,0.00021917,2]
[312017102,1705551034195,-500.0,0.00021917,2]
[312017103,1705551034204,-500.0,0.00021917,2]
[312017104,1705551034213,-500.0,0.00021917,2]
[312017105,1705551034222,-500.0,0.00021917,2]
[312017106,1705551034231,-508.82552387,0.00021917,2]
[312017107,1705551034240,-500.0,0.00021917,2]
[312017108,1705551034249,-500.0,0.00021917,2]
[312017109,1705551034258,-501.79522942,0.00021917,2]
[312017110,1705551034267,-500.0,0.00021917,2]
[312017111,1705551034277,-500.0,0.00021917,2]
[312017112,1705551034287,-500.0,0.00021917,2]
[312017113,1705551034296,-513.53434137,0.00021917,2]
[312017114,1705551034305,-500.0,0.00021917,2]
[312017115,1705551034314,-445.65301895,0.00021917,2]
[312017116,1705551034323,-500.0,0.00021917,2]
[312017117,1705551034332,-500.0,0.00021917,2]
[312017118,1705551034341,-500.0,0.00021917,2]
[312017119,1705551034349,-500.0,0.00021917,2]
[312017120,1705551034359,-500.0,0.00021917,2]
[312017121,1705551034368,-500.0,0.00021917,2]
[312017122,1705551034377,-500.0,0.00021917,2]
[312017123,1705551034385,-500.0,0.00021917,2]
[312017124,1705551034394,-500.0,0.00021917,2]
[312017125,1705551034404,-500.0,0.00021917,2]
[312017126,1705551034413,-500.0,0.00021917,2]
[312017127,1705551034421,-500.0,0.00021917,2]
[312017128,1705551034430,-500.0,0.00021917,2]
[312017129,1705551034439,-505.73722369,0.00021917,2]
[312017130,1705551034448,-500.0,0.00021917,2]
[312017131,1705551034457,-500.0,0.00021917,2]
[312017132,1705551034467,-500.0,0.00021917,2]
[312017133,1705551034476,-500.0,0.00021917,2]
[312017134,1705551034486,-500.0,0.00021917,2]
[312017135,1705551034495,-500.0,0.00021917,2]
[312017136,1705551034504,-500.0,0.00021917,2]
[312017137,1705551034515,-500.0,0.00021917,2]
[312017138,1705551034524,-500.0,0.00021917,2]
[312017139,1705551034538,-500.0,0.00021917,2]
[312017140,1705551034548,-500.0,0.00021917,2]
[312017141,1705551034557,-500.0,0.00021917,2]
[312017142,1705551034566,-500.0,0.00021917,2]
[312017143,1705551034575,-500.0,0.00021917,2]
[312017144,1705551034584,-500.0,0.00021917,2]
[312017145,1705551034593,-500.0,0.00021917,2]
[312017146,1705551034603,-500.0,0.00021917,2]
[312017147,1705551034613,-500.0,0.00021917,2]
[312017148,1705551034622,-500.0,0.00021917,2]
[312017149,1705551034631,-500.0,0.00021917,2]
[312017150,1705551034640,-500.0,0.00021917,2]
[312017151,1705551034649,-500.0,0.00021917,2]
[312017152,1705551034659,-500.0,0.00021917,2]
[312017153,1705551034669,-500.0,0.00021917,2]
[312017154,1705551034677,-500.0,0.00021917,2]
[312017155,1705551034686,-500.0,0.00021917,2]
[312017156,1705551034695,-500.0,0.00021917,2]
[312017157,1705551034704,-500.0,0.00021917,2]
[312017158,1705551034714,-500.0,0.00021917,2]
[312017159,1705551034723,-518.28740894,0.00021917,2]
[312017160,1705551034732,-500.0,0.00021917,2]
[312017161,1705551034741,-500.0,0.00021917,2]
[312017162,1705551034751,-500.0,0.00021917,2]
[312017163,1705551034761,-500.0,0.00021917,2]
[312017164,1705551034770,-500.0,0.00021917,2]
[312017165,1705551034782,-500.0,0.00021917,2]
[312017166,1705551034792,-500.0,0.00021917,2]
[312017167,1705551034801,-500.0,0.00021917,2]
[312017168,1705551034810,-500.0,0.00021917,2]